fUSD/lending_fUSD_20260521
["ID","MTS","AMOUNT","RATE_DAILY","PERIOD"]
[422731428,1779336640000,-500.0,0.00013025,2]
[422731426,1779336640000,-2284.87778532,0.00012926,2]
[422731431,1779336640000,-486.78664632,0.00013025,2]
[422731432,1779336640000,-281.21335368,0.00013025,2]
[422731433,1779336640000,-218.78664632,0.00013025,2]
[422731434,1779336640000,-31.21335368,0.00013025,2]
[422731430,1779336640000,-13.21335368,0.00013025,2]
[422731456,1779336641000,-500.0,0.00013025,2]
[422731453,1779336641000,-500.0,0.00013025,2]
[422731452,1779336641000,-500.0,0.00013025,2]
[422731460,1779336641000,-500.0,0.00013025,2]
[422731457,1779336641000,-500.0,0.00013025,2]
[422731461,1779336641000,-500.0,0.00013025,2]
[422731459,1779336641000,-500.0,0.00013025,2]
[422731465,1779336641000,-500.0,0.00013025,2]
[422731467,1779336641000,-500.0,0.00013025,2]
[422731466,1779336641000,-500.0,0.00013025,2]
[422731464,1779336641000,-500.0,0.00013025,2]
[422731469,1779336641000,-383.32407326,0.0001316,2]
[422731468,1779336641000,-500.0,0.00013025,2]
[422731450,1779336641000,-500.0,0.00013025,2]
[422731463,1779336641000,-500.0,0.00013025,2]
[422731454,1779336641000,-500.0,0.00013025,2]
[422731443,1779336641000,-500.0,0.00013025,2]
[422731451,1779336641000,-500.0,0.00013025,2]
[422731458,1779336641000,-500.0,0.00013025,2]
[422731436,1779336641000,-500.0,0.00013025,2]
[422731442,1779336641000,-500.0,0.00013025,2]
[422731437,1779336641000,-500.0,0.00013025,2]
[422731435,1779336641000,-468.78664632,0.00013025,2]
[422731440,1779336641000,-500.0,0.00013025,2]
[422731449,1779336641000,-396.54592163,0.00013025,2]
[422731439,1779336641000,-500.0,0.00013025,2]
[422731444,1779336641000,-500.0,0.00013025,2]
[422731445,1779336641000,-500.0,0.00013025,2]
[422731448,1779336641000,-500.0,0.00013025,2]
[422731455,1779336641000,-500.0,0.00013025,2]
[422731446,1779336641000,-500.0,0.00013025,2]
[422731447,1779336641000,-500.0,0.00013025,2]
[422731441,1779336641000,-500.0,0.00013025,2]
[422731438,1779336641000,-500.0,0.00013025,2]
[422731482,1779336641000,-500.0,0.00013297,5]
[422731481,1779336641000,-500.0,0.00013297,5]
[422731492,1779336641000,-350.0,0.00013475,2]
[422731491,1779336641000,-350.0,0.00013453,3]
[422731493,1779336641000,-200.0,0.00013482,2]
[422731489,1779336641000,-500.0,0.00013356,2]
[422731495,1779336641000,-150.54123673,0.00013488,2]
[422731499,1779336641000,-150.0,0.00013488,2]
[422731485,1779336641000,-250.0,0.0001331,2]
[422731497,1779336641000,-150.0,0.00013488,2]
[422731500,1779336641000,-3582.59707842,0.00013517,2]
[422731498,1779336641000,-150.0,0.00013488,2]
[422731501,1779336641000,-152.0,0.00013571,5]
[422731503,1779336641000,-2000.0,0.00013598,2]
[422731504,1779336641000,-5161.86529228,0.00013598,2]
[422731462,1779336641000,-500.0,0.00013025,2]
[422731496,1779336641000,-150.0,0.00013488,2]
[422731487,1779336641000,-500.0,0.00013314,2]
[422731502,1779336641000,-500.0,0.00013588,2]
[422731488,1779336641000,-700.0,0.00013356,2]
[422731483,1779336641000,-500.0,0.00013297,5]
[422731471,1779336641000,-844.73856,0.0001316,2]
[422731479,1779336641000,-204.65903694,0.00013256,2]
[422731480,1779336641000,-3582.59707842,0.00013287,2]
[422731472,1779336641000,-251.93625546,0.0001316,2]
[422731475,1779336641000,-201.93376868,0.00013203,3]
[422731473,1779336641000,-176.86446495,0.00013194,2]
[422731470,1779336641000,-844.73856,0.0001316,2]
[422731477,1779336641000,-152.0,0.00013249,4]
[422731474,1779336641000,-176.86446494,0.00013194,2]
[422731476,1779336641000,-1358.54243293,0.00013204,3]
[422731484,1779336641000,-514.35512898,0.00013297,5]
[422731490,1779336641000,-196.63,0.00013356,2]
[422731494,1779336641000,-150.0,0.00013488,2]
[422731478,1779336641000,-350.0,0.00013255,2]
[422731486,1779336641000,-175.98,0.00013314,2]
[422731516,1779336643000,-3275.65490772,0.00013598,2]
[422731517,1779336643000,-215.23956962,0.00013598,2]
[422731515,1779336643000,-3168.0291686,0.00013145,2]
[422731571,1779336644000,-692.98459831,0.0001397,2]
[422731557,1779336644000,-420.0,0.00013923,2]
[422731558,1779336644000,-255.0,0.00013928,2]
[422731551,1779336644000,-3582.59707842,0.00013748,2]
[422731549,1779336644000,-350.0,0.000137,2]
[422731550,1779336644000,-150.0,0.00013737,2]
[422731547,1779336644000,-166.66,0.00013699,2]
[422731555,1779336644000,-160.0,0.000139,2]
[422731573,1779336644000,-3582.59707842,0.00013978,2]
[422731548,1779336644000,-2500.0,0.00013699,2]
[422731556,1779336644000,-300.0,0.000139,5]
[422731574,1779336644000,-150.0,0.00013987,2]
[422731576,1779336644000,-6766.22784546,0.00014,2]
[422731569,1779336644000,-1000.0,0.0001397,2]
[422731559,1779336644000,-1680.0,0.00013961,2]
[422731563,1779336644000,-212.142987,0.00013965,2]
[422731560,1779336644000,-160.0,0.00013965,2]
[422731567,1779336644000,-179.30526,0.00013965,2]
[422731562,1779336644000,-186.071493,0.00013965,2]
[422731565,1779336644000,-252.209068,0.00013965,2]
[422731575,1779336644000,-151.0,0.00013997,2]
[422731586,1779336644000,-250.0,0.00014,2]
[422731577,1779336644000,-19722.34,0.00014,2]
[422731578,1779336644000,-19722.34,0.00014,2]
[422731554,1779336644000,-152.0,0.00013893,6]
[422731572,1779336644000,-166.66,0.00013973,2]
[422731553,1779336644000,-500.0,0.00013862,2]
[422731523,1779336644000,-500.0,0.00013698,2]
[422731552,1779336644000,-166.66,0.00013836,2]
[422731527,1779336644000,-500.0,0.00013698,2]
[422731518,1779336644000,-175.98,0.00013623,2]
[422731519,1779336644000,-186.0,0.00013698,2]
[422731522,1779336644000,-2338.91,0.00013698,2]
[422731520,1779336644000,-2338.91,0.00013698,2]
[422731526,1779336644000,-500.0,0.00013698,2]
[422731528,1779336644000,-500.0,0.00013698,2]
[422731524,1779336644000,-500.0,0.00013698,2]
[422731521,1779336644000,-2338.91,0.00013698,2]
[422731579,1779336644000,-19722.34,0.00014,2]
[422731525,1779336644000,-521.10233812,0.00013698,2]
[422731530,1779336644000,-500.0,0.00013698,2]
[422731546,1779336644000,-200.0,0.00013699,2]
[422731529,1779336644000,-186.0,0.00013698,2]
[422731534,1779336644000,-500.0,0.00013698,2]
[422731536,1779336644000,-500.0,0.00013698,2]
[422731537,1779336644000,-500.0,0.00013698,2]
[422731538,1779336644000,-500.0,0.00013698,2]
[422731542,1779336644000,-1283.72,0.00013698,2]
[422731541,1779336644000,-506.60979522,0.00013698,2]
[422731539,1779336644000,-500.88881958,0.00013698,2]
[422731540,1779336644000,-500.0,0.00013698,2]
[422731535,1779336644000,-500.0,0.00013698,2]
[422731543,1779336644000,-500.0,0.00013698,2]
[422731545,1779336644000,-500.0,0.00013698,2]
[422731544,1779336644000,-500.0,0.00013698,2]
[422731531,1779336644000,-500.0,0.00013698,2]
[422731580,1779336644000,-200.89,0.00014,2]
[422731582,1779336644000,-156.624335,0.00014,2]
[422731585,1779336644000,-202.854981,0.00014,2]
[422731617,1779336644000,-504.25996509,0.00014248,2]
[422731616,1779336644000,-508.06821026,0.00014248,2]
[422731626,1779336644000,-500.0,0.00014249,2]
[422731620,1779336644000,-500.0,0.00014248,2]
[422731625,1779336644000,-500.0,0.00014249,2]
[422731618,1779336644000,-1283.72,0.00014248,2]
[422731614,1779336644000,-506.46359412,0.00014248,2]
[422731619,1779336644000,-500.0,0.00014248,2]
[422731624,1779336644000,-500.0,0.00014249,2]
[422731622,1779336644000,-1283.72,0.00014249,2]
[422731623,1779336644000,-500.0,0.00014249,2]
[422731621,1779336644000,-500.0,0.00014249,2]
[422731615,1779336644000,-512.53865317,0.00014248,2]
[422731583,1779336644000,-839.0,0.00014,2]
[422731629,1779336644000,-188.01977014,0.00014249,2]
[422731627,1779336644000,-171.01400637,0.00014249,2]
[422731639,1779336644000,-500.0,0.0001425,2]
[422731631,1779336644000,-414.28607696,0.00014249,2]
[422731630,1779336644000,-500.0,0.00014249,2]
[422731636,1779336644000,-500.0,0.0001425,2]
[422731634,1779336644000,-152.72799,0.0001425,2]
[422731632,1779336644000,-171.50194821,0.00014249,2]
[422731637,1779336644000,-500.0,0.0001425,2]
[422731635,1779336644000,-500.0,0.0001425,2]
[422731633,1779336644000,-322197.49935903,0.0001425,2]
[422731640,1779336644000,-500.0,0.0001425,2]
[422731638,1779336644000,-500.0,0.0001425,2]
[422731610,1779336644000,-166.66,0.00014247,2]
[422731628,1779336644000,-500.0,0.00014249,2]
[422731612,1779336644000,-151.0,0.00014247,2]
[422731608,1779336644000,-150.0,0.00014237,2]
[422731581,1779336644000,-3126.0,0.00014,2]
[422731584,1779336644000,-928.0,0.00014,2]
[422731588,1779336644000,-10035.71830794,0.00014,2]
[422731598,1779336644000,-1000.0,0.0001417,2]
[422731590,1779336644000,-326.949125,0.00014035,2]
[422731600,1779336644000,-500.0,0.0001417,2]
[422731596,1779336644000,-5000.0,0.0001415,2]
[422731599,1779336644000,-1000.0,0.0001417,2]
[422731595,1779336644000,-315.72314025,0.00014136,2]
[422731591,1779336644000,-2314.0,0.0001404,2]
[422731592,1779336644000,-2336.0,0.0001404,2]
[422731587,1779336644000,-151.0,0.00014,2]
[422731593,1779336644000,-700.0,0.000141,5]
[422731594,1779336644000,-166.66,0.0001411,2]
[422731602,1779336644000,-500.0,0.00014184,2]
[422731589,1779336644000,-325.113252,0.00014035,2]
[422731613,1779336644000,-500.0,0.00014248,2]
[422731609,1779336644000,-150.0,0.00014237,2]
[422731607,1779336644000,-152.0,0.00014216,7]
[422731606,1779336644000,-500.0,0.00014213,2]
[422731611,1779336644000,-151.0,0.00014247,2]
[422731604,1779336644000,-1100.0,0.000142,5]
[422731603,1779336644000,-2000.0,0.000142,2]
[422731601,1779336644000,-2338.91,0.00014184,2]
[422731597,1779336644000,-500.0,0.0001417,2]
[422731605,1779336644000,-3582.59707842,0.00014209,2]
[422731667,1779336645000,-1271.0,0.00014412,2]
[422731659,1779336645000,-166.66,0.00014384,2]
[422731665,1779336645000,-626.133,0.00014412,2]
[422731663,1779336645000,-1356.332,0.00014412,2]
[422731664,1779336645000,-3552.706,0.00014412,2]
[422731658,1779336645000,-480.0,0.00014383,2]
[422731668,1779336645000,-1224.0,0.00014412,2]
[422731657,1779336645000,-500.0,0.0001437,2]
[422731662,1779336645000,-200.0,0.00014412,2]
[422731661,1779336645000,-862.0,0.00014406,5]
[422731669,1779336645000,-6058.0,0.00014412,2]
[422731654,1779336645000,-350.0,0.00014298,3]
[422731660,1779336645000,-1800.0,0.000144,5]
[422731656,1779336645000,-1000.0,0.0001437,2]
[422731652,1779336645000,-350.0,0.00014266,2]
[422731655,1779336645000,-1400.0,0.000143,5]
[422731650,1779336645000,-3360.22004,0.0001425,2]
[422731647,1779336645000,-500.0,0.0001425,2]
[422731648,1779336645000,-304.266661,0.0001425,2]
[422731644,1779336645000,-500.0,0.0001425,2]
[422731649,1779336645000,-270.808128,0.0001425,2]
[422731642,1779336645000,-500.0,0.0001425,2]
[422731645,1779336645000,-500.0,0.0001425,2]
[422731653,1779336645000,-500.0,0.00014268,2]
[422731643,1779336645000,-500.0,0.0001425,2]
[422731651,1779336645000,-151.0,0.0001425,2]
[422731646,1779336645000,-500.0,0.0001425,2]
[422731641,1779336645000,-500.0,0.0001425,2]
[422731673,1779336645000,-150.0,0.00014487,2]
[422731666,1779336645000,-927.0,0.00014412,2]
[422731671,1779336645000,-3582.59707842,0.00014439,2]
[422731686,1779336645000,-1061.0,0.00014552,5]
[422731670,1779336645000,-934.748,0.00014412,2]
[422731674,1779336645000,-17975.75,0.00014497,2]
[422731704,1779336645000,-103615.31441138,0.000147,2]
[422731701,1779336645000,-151.0,0.00014697,2]
[422731703,1779336645000,-500.0,0.00014699,2]
[422731699,1779336645000,-1125.661,0.0001467,2]
[422731698,1779336645000,-1000.0,0.0001467,2]
[422731694,1779336645000,-211.530756,0.00014663,2]
[422731697,1779336645000,-500.0,0.0001467,2]
[422731695,1779336645000,-253.733855,0.00014663,2]
[422731696,1779336645000,-3582.59707842,0.0001467,2]
[422731692,1779336645000,-468.63565665,0.000146,2]
[422731690,1779336645000,-500.0,0.00014566,2]
[422731693,1779336645000,-300.0,0.000146,5]
[422731691,1779336645000,-176.61049077,0.000146,2]
[422731689,1779336645000,-2338.91,0.00014566,2]
[422731700,1779336645000,-713.11185557,0.0001469,2]
[422731685,1779336645000,-500.0,0.00014551,2]
[422731687,1779336645000,-95092.4903146,0.00014552,2]
[422731680,1779336645000,-152.0,0.00014538,8]
[422731672,1779336645000,-150.0,0.00014439,2]
[422731679,1779336645000,-1165.0122144,0.00014529,2]
[422731681,1779336645000,-151.0,0.00014549,2]
[422731676,1779336645000,-2934.0789202,0.00014529,2]
[422731675,1779336645000,-300.0,0.000145,5]
[422731678,1779336645000,-18515.4463791,0.00014529,2]
[422731682,1779336645000,-500.0,0.00014551,2]
[422731688,1779336645000,-151.0,0.00014552,2]
[422731683,1779336645000,-1283.72,0.00014551,2]
[422731702,1779336645000,-300.0,0.00014699,2]
[422731684,1779336645000,-500.0,0.00014551,2]
[422731677,1779336645000,-5182.8047042,0.00014529,2]
[422731705,1779336646000,-581.07374067,0.000147,2]
[422731707,1779336646000,-420.05544144,0.000147,2]
[422731710,1779336647000,-647.46,0.00013365,2]
[422731712,1779336647000,-500.0,0.00013698,2]
[422731711,1779336647000,-2520.5691686,0.00013365,2]
[422731713,1779336647000,-3634.0,0.00014228,2]
[422731714,1779336647000,-455.98378796,0.00014249,2]
[422731715,1779336647000,-3737.92064344,0.000147,2]
[422731723,1779337665000,1812.4,0.0002876,120]
[422731725,1779337740000,1000.0,0.00028766,120]
[422731793,1779337832000,-150.0,0.00013488,2]
[422731797,1779337832000,-187.69,0.00013554,2]
[422731798,1779337832000,-1258.55,0.00013696,2]
[422731801,1779337832000,-166.66,0.00013699,2]
[422731796,1779337832000,-245.0,0.00013506,2]
[422731802,1779337832000,-200.0,0.00013699,2]
[422731799,1779337832000,-183.796272,0.00013698,2]
[422731800,1779337832000,-500.0,0.00013698,2]
[422731803,1779337832000,-287.0,0.00013782,2]
[422731804,1779337832000,-166.66,0.00013836,2]
[422731807,1779337832000,-300.0,0.00013851,2]
[422731806,1779337832000,-300.0,0.00013851,2]
[422731808,1779337832000,-300.0,0.00013851,2]
[422731809,1779337832000,-300.0,0.00013851,2]
[422731811,1779337832000,-2500.0,0.00013851,2]
[422731795,1779337832000,-154.22298885,0.00013488,2]
[422731812,1779337832000,-2500.0,0.00013851,2]
[422731805,1779337832000,-150.0,0.0001385,2]
[422731794,1779337832000,-150.0,0.00013488,2]
[422731774,1779337832000,-160.0,0.00012629,2]
[422731790,1779337832000,-161.62,0.00013405,2]
[422731813,1779337832000,-2500.0,0.00013851,2]
[422731773,1779337832000,-216.32505331,0.00012592,2]
[422731776,1779337832000,-232.07637707,0.00012821,2]
[422731775,1779337832000,-215.23956962,0.00012677,2]
[422731777,1779337832000,-67.92362293,0.00012821,2]
[422731778,1779337832000,-264.72474258,0.00012821,2]
[422731779,1779337832000,-793.0,0.00012821,2]
[422731780,1779337832000,-142.27525742,0.00012821,2]
[422731792,1779337832000,-150.0,0.00013488,2]
[422731781,1779337832000,-22613.2374,0.00012822,2]
[422731783,1779337832000,-2000.0,0.00012926,2]
[422731785,1779337832000,-600.0,0.00013356,2]
[422731784,1779337832000,-181.8,0.00013332,2]
[422731786,1779337832000,-500.0,0.00013356,2]
[422731789,1779337832000,-2000.0,0.00013395,2]
[422731791,1779337832000,-150.00000001,0.00013488,2]
[422731788,1779337832000,-157.83,0.00013375,2]
[422731787,1779337832000,-1258.55,0.00013362,2]
[422731782,1779337832000,-305.5524,0.00012926,2]
[422731814,1779337832000,-2500.0,0.00013851,2]
[422731820,1779337832000,-170.22939654,0.00013851,2]
[422731815,1779337832000,-2500.0,0.00013851,2]
[422731841,1779337832000,-1603.25651338,0.0001467,2]
[422731838,1779337832000,-900.529,0.00014487,2]
[422731840,1779337832000,-2500.0,0.000146,2]
[422731842,1779337832000,-154.40903449,0.00014697,2]
[422731845,1779337832000,-1359.17244,0.000147,2]
[422731843,1779337832000,-1258.55,0.00014698,2]
[422731846,1779337832000,-1249.248562,0.000147,2]
[422731844,1779337832000,-77307.58906751,0.000147,2]
[422731848,1779337832000,-200.0,0.000147,2]
[422731847,1779337832000,-200.0,0.000147,2]
[422731853,1779337832000,-229.848725,0.000147,2]
[422731849,1779337832000,-200.0,0.000147,2]
[422731854,1779337832000,-474.012441,0.000147,2]
[422731851,1779337832000,-1166.66666,0.000147,2]
[422731810,1779337832000,-300.0,0.00013851,2]
[422731852,1779337832000,-296.289372,0.000147,2]
[422731855,1779337832000,-600.0,0.00014726,2]
[422731839,1779337832000,-200.0,0.00014582,2]
[422731835,1779337832000,-16668.7999169,0.00014415,2]
[422731850,1779337832000,-1455.01908478,0.000147,2]
[422731837,1779337832000,-654.6814994,0.00014415,2]
[422731836,1779337832000,-1156.4400437,0.00014415,2]
[422731816,1779337832000,-600.0,0.00013851,2]
[422731819,1779337832000,-600.0,0.00013851,2]
[422731818,1779337832000,-600.0,0.00013851,2]
[422731821,1779337832000,-166.66,0.00013973,2]
[422731823,1779337832000,-1258.55,0.0001403,2]
[422731825,1779337832000,-468.0,0.00014103,2]
[422731827,1779337832000,-166.66,0.00014247,2]
[422731822,1779337832000,-500.0,0.00013973,2]
[422731817,1779337832000,-600.0,0.00013851,2]
[422731828,1779337832000,-500.0,0.00014247,2]
[422731826,1779337832000,-166.66,0.0001411,2]
[422731830,1779337832000,-3761.9422,0.00014315,2]
[422731829,1779337832000,-578.19370214,0.00014248,2]
[422731834,1779337832000,-166.66,0.00014384,2]
[422731832,1779337832000,-1215.566,0.00014382,2]
[422731831,1779337832000,-1258.55,0.00014364,2]
[422731824,1779337832000,-420.0,0.00014063,2]
[422731833,1779337832000,-280.273,0.00014382,2]
[422731867,1779337833000,-2588.99095826,0.00014822,2]
[422731865,1779337833000,-1000.0,0.00014813,2]
[422731864,1779337833000,-2588.99095826,0.00014811,2]
[422731862,1779337833000,-3923.58411716,0.000148,2]
[422731861,1779337833000,-362.08554081,0.00014799,2]
[422731859,1779337833000,-360.272529,0.00014773,2]
[422731860,1779337833000,-1000.0,0.00014796,2]
[422731863,1779337833000,-2588.99095826,0.000148,2]
[422731856,1779337833000,-1000.0,0.00014733,2]
[422731858,1779337833000,-1000.0,0.0001477,2]
[422731857,1779337833000,-1000.0,0.00014744,2]
[422731868,1779337833000,-3923.5841171,0.00014829,2]
[422731866,1779337833000,-3923.5841171,0.00014814,2]
[422731870,1779337833000,-3923.5841171,0.00014843,2]
[422731878,1779337833000,-3923.5841171,0.00014857,2]
[422731871,1779337833000,-2588.99095826,0.00014844,2]
[422731885,1779337833000,-1986.82685433,0.00014878,2]
[422731883,1779337833000,-1000.0,0.0001487,2]
[422731884,1779337833000,-3923.5841171,0.00014871,2]
[422731879,1779337833000,-152.0,0.0001486,9]
[422731869,1779337833000,-2588.99095826,0.00014833,2]
[422731880,1779337833000,-3719.3119949,0.00014862,2]
[422731881,1779337833000,-2588.99095826,0.00014867,2]
[422731876,1779337833000,-500.0,0.00014856,2]
[422731877,1779337833000,-500.0,0.00014856,2]
[422731873,1779337833000,-200.0,0.00014847,2]
[422731875,1779337833000,-2588.99095826,0.00014856,2]
[422731874,1779337833000,-200.0,0.00014847,2]
[422731872,1779337833000,-200.0,0.00014847,2]
[422731882,1779337833000,-500.0,0.0001487,2]
[422731889,1779337837000,-602.16410393,0.00014878,2]
[422731886,1779337837000,-3634.0,0.00014382,2]
[422731887,1779337837000,-3245.5798565,0.00014415,2]
[422731890,1779337837000,-9627.48231686,0.00014882,3]
[422731891,1779337837000,-545.85460464,0.00014882,3]
[422731892,1779337837000,-481.77481283,0.00014882,3]
[422731894,1779337837000,-870.1770864,0.00014882,3]
[422731888,1779337837000,-970.01272318,0.000147,2]
[422731895,1779337837000,-5818.14970593,0.00014882,3]
[422731893,1779337837000,-1466.25518156,0.00014882,3]
[422731896,1779337838000,-4730.75089867,0.00014882,3]
[422732497,1779337842000,-605.38894266,0.000147,2]
[422732499,1779337842000,-166.66,0.00014716,2]
[422732494,1779337842000,-166.66,0.00014513,2]
[422732495,1779337842000,-41.28620612,0.000147,2]
[422732491,1779337842000,-166.66,0.00014309,2]
[422732489,1779337842000,-78.24379388,0.00014106,2]
[422732485,1779337842000,-166.66,0.00013902,2]
[422732483,1779337842000,-166.66,0.00013699,2]
[422732487,1779337842000,-88.41620612,0.00014106,2]
[422732500,1779337842000,-5.91876499,0.00014882,3]
[422732516,1779337846000,-353.05001,0.00014382,2]
[422732522,1779338018000,2005.24,0.00028767,120]
[422732523,1779338142000,150.0,0.0002867,120]
[422732525,1779338510000,150.74252009,0.00028767,120]
[422732527,1779338940000,1000.0,0.00028766,120]
[422732528,1779339004000,1000.0,0.00028767,120]
[422732540,1779339031000,-500.0,0.00013356,2]
[422732533,1779339031000,-256.77,0.00013181,2]
[422732532,1779339031000,-276.73,0.00013058,2]
[422732535,1779339031000,-462.19315992,0.00013223,2]
[422732534,1779339031000,-1273.66045395,0.00013223,2]
[422732538,1779339031000,-206.24,0.00013284,2]
[422732531,1779339031000,-1200.0,0.00012721,2]
[422732537,1779339031000,-259.78,0.00013243,2]
[422732536,1779339031000,-264.14638613,0.00013223,2]
[422732539,1779339031000,-500.0,0.00013356,2]
[422732541,1779339031000,-215.23956962,0.00013436,2]
[422732530,1779339031000,-300.0,0.00012721,2]
[422732549,1779339031000,-308.93914437,0.00013651,2]
[422732543,1779339031000,-150.0,0.00013488,2]
[422732542,1779339031000,-208.45949575,0.00013465,2]
[422732545,1779339031000,-11890.98821843,0.00013651,2]
[422732546,1779339031000,-1488.70773973,0.00013651,2]
[422732548,1779339031000,-500.91157275,0.00013651,2]
[422732547,1779339031000,-3636.70979748,0.00013651,2]
[422732551,1779339031000,-824.12062369,0.00013651,2]
[422732550,1779339031000,-637.20601894,0.00013651,2]
[422732552,1779339031000,-699.49483532,0.00013651,2]
[422732553,1779339031000,-52105.40754929,0.00013651,2]
[422732544,1779339031000,-187.69,0.00013621,2]
[422732581,1779339032000,-300.0,0.00013993,2]
[422732592,1779339032000,-300.0,0.00013993,2]
[422732591,1779339032000,-300.0,0.00013993,2]
[422732590,1779339032000,-300.0,0.00013993,2]
[422732588,1779339032000,-300.0,0.00013993,2]
[422732579,1779339032000,-2634.33906478,0.00013993,2]
[422732575,1779339032000,-2500.0,0.00013993,2]
[422732583,1779339032000,-300.0,0.00013993,2]
[422732602,1779339032000,-625.0,0.0001437,2]
[422732601,1779339032000,-1977.87375416,0.00014367,2]
[422732600,1779339032000,-166.66,0.00014247,2]
[422732604,1779339032000,-1035.438,0.0001437,2]
[422732593,1779339032000,-295.37321479,0.00013993,2]
[422732603,1779339032000,-1354.0,0.0001437,2]
[422732597,1779339032000,-1977.87375416,0.00014101,2]
[422732605,1779339032000,-931.0,0.0001437,2]
[422732595,1779339032000,-206.16602365,0.00013993,2]
[422732584,1779339032000,-300.0,0.00013993,2]
[422732577,1779339032000,-2500.0,0.00013993,2]
[422732567,1779339032000,-166.66,0.00013836,2]
[422732570,1779339032000,-166.66,0.00013973,2]
[422732594,1779339032000,-150.0,0.00013993,2]
[422732561,1779339032000,-150.0,0.0001375,2]
[422732554,1779339032000,-2500.0,0.00013651,2]
[422732555,1779339032000,-3107.8027,0.00013651,2]
[422732558,1779339032000,-166.66,0.00013699,2]
[422732556,1779339032000,-152.0,0.00013679,3]
[422732557,1779339032000,-200.0,0.00013699,2]
[422732560,1779339032000,-151.0,0.00013748,2]
[422732559,1779339032000,-1977.87375425,0.00013701,2]
[422732562,1779339032000,-500.0,0.00013801,2]
[422732564,1779339032000,-1069.76,0.00013801,2]
[422732572,1779339032000,-2500.0,0.00013993,2]
[422732571,1779339032000,-480.0,0.00013993,2]
[422732568,1779339032000,-420.0,0.00013955,2]
[422732569,1779339032000,-1977.87375416,0.00013967,2]
[422732563,1779339032000,-514.98976556,0.00013801,2]
[422732566,1779339032000,-1977.87375416,0.00013834,2]
[422732565,1779339032000,-24114.38,0.00013801,2]
[422732573,1779339032000,-2500.0,0.00013993,2]
[422732586,1779339032000,-300.0,0.00013993,2]
[422732599,1779339032000,-1977.87375416,0.00014234,2]
[422732609,1779339032000,-326.9767,0.000146,2]
[422732596,1779339032000,-250.0,0.00014,2]
[422732626,1779339032000,-1000.0,0.00014763,2]
[422732630,1779339032000,-500.0,0.00014798,2]
[422732631,1779339032000,-1069.76,0.00014798,2]
[422732637,1779339032000,-1000.0,0.00014832,2]
[422732635,1779339032000,-829.8906811,0.00014799,2]
[422732636,1779339032000,-517.79819165,0.0001481,2]
[422732634,1779339032000,-200362.13464845,0.00014799,2]
[422732633,1779339032000,-22370.03415655,0.00014799,2]
[422732628,1779339032000,-1977.87375416,0.00014767,2]
[422732638,1779339032000,-517.79819165,0.00014833,2]
[422732640,1779339032000,-517.79819165,0.00014855,2]
[422732639,1779339032000,-1433.94849858,0.00014843,2]
[422732642,1779339032000,-1433.94849858,0.00014871,2]
[422732644,1779339032000,-517.79819165,0.00014878,2]
[422732641,1779339032000,-255.0,0.00014864,2]
[422732646,1779339032000,-468.06180386,0.00014878,2]
[422732598,1779339032000,-166.66,0.0001411,2]
[422732643,1779339032000,-2000.0,0.00014876,2]
[422732632,1779339032000,-259.9493619,0.00014799,2]
[422732625,1779339032000,-200.0,0.00014759,2]
[422732645,1779339032000,-972.22223,0.00014878,2]
[422732627,1779339032000,-517.79819165,0.00014765,2]